Cogmind - Beta 14 @@@ ROGUE MODE // 2024.10.04 @ 23:09:13 Player: morimori Result: Destroyed by L-31 Rogue with Katana Performance ------------- Evolutions (1) 500 Regions Visited (2) 400 Robots Destroyed (1) 5 Value Destroyed (34) 34 Prototype IDs (1) 20 Alien Tech Used (0) 0 Bonus (200) 200 TOTAL SCORE: 1159 Bonus ------- Pacifist 200 Cogmind --------- Core Integrity 0/400 Matter 300/300 Energy 100/100 System Corruption 1% Temperature Cool (0) Movement Core (50) Location -9/Materials Parts ------- > --- POWER (1) -------- (None) > --- PROPULSION (2) --- (None) > --- UTILITY (4) ------ (None) > --- WEAPON (2) ------- (None) > --- INVENTORY (5) ---- Ion Engine Improved Ion Engine Faulty Improved Medium Laser Peak State ------------ > --- POWER ------------ (None) > --- PROPULSION ------- Improved Hover Unit > --- UTILITY ---------- Small Storage Unit Medium Armor Plating Medium Armor Plating > --- WEAPON ----------- Improved Medium Laser Light Assault Rifle > --- INVENTORY -------- Ion Engine Assault Rifle [Rating: 11] Favorites ----------- Power Light Ion Engine Engine Light Ion Engine Propulsion Compact Wheel Wheel Compact Wheel Hover Unit Improved Hover Unit Utility Small Storage Unit Storage Small Storage Unit Protection Medium Armor Plating Weapon Light Assault Rifle Energy Gun Improved Medium Laser Ballistic Gun Light Assault Rifle Build | -11 -10 -9 ------- Run | Yrd Mat Mat Slots Evolved 2 | . . 2 Power . | . . . Propulsion . | . . . Utility 2 | . . 2 Weapon . | . . . Parts Attached 13 | 8 . 5 Power 2 | 2 . . Engine 2 | 2 . . Core . | . . . Reactor . | . . . Propulsion 3 | 2 . 1 Treads . | . . . Leg . | . . . Wheel 2 | 2 . . Hover 1 | . . 1 Flight . | . . . Utility 4 | 2 . 2 Device . | . . . Storage 2 | 2 . . Processor . | . . . Hackware . | . . . Protection 2 | . . 2 Artifact . | . . . Weapon 4 | 2 . 2 Energy Gun 1 | . . 1 Energy Cannon . | . . . Ballistic Gun 3 | 2 . 1 Ballistic Cannon . | . . . Launcher . | . . . Special Weapon . | . . . Impact Weapon . | . . . Slashing Weapon . | . . . Piercing Weapon . | . . . Special Melee Weapon . | . . . Unidentified Prototypes 1 | . . 1 Parts Lost 7 | . 3 4 Power 1 | . 1 . Propulsion 3 | . 2 1 Utility 2 | . . 2 Weapon 1 | . . 1 Highest Loss Streak 4 | . 3 4 To Critical Strikes . | . . . Average Slot Usage (%) 61 | . 71 52 Engine 4 | . 8 . Wheel 10 | . 20 . Hover 4 | . . 8 Storage 12 | . 14 10 Protection 7 | . . 15 Ballistic Gun 22 | . 28 16 Peak Build Rating 11 | 6 6 11 Average Rating 5 | 3 5 7 On Entrance 3 | . 6 3 Naked Turns 13 | . . 13 Heaviest Build 23 | 11 11 23 Greatest Support 26 | 26 26 7 Greatest Overweight (x) 3 | 1 2 3 Average Overweight (x) . | . . 2 Largest Inventory Capacity 8 | 8 8 8 Average Capacity 7 | 6 8 7 Most Carried 3 | 2 2 3 Average Carried 2 | 1 2 2 Final Capacity 8 | 8 8 5 Final Carried 3 | 2 2 3 Class Distribution -------------------- 100% | Mutant Dominant Class ---------------- Mutant | -10/Materials Mutant | -9/Materials Resources | -11 -10 -9 ----------- Run | Yrd Mat Mat Matter Collected 223 | 172 . 51 Remotely . | . . . Salvage Created 50 | . . 50 Parts 5 | . . 5 Haulers Intercepted . | . . . Recyclers Shooed . | . . . Parts Field Recycled . | . . . Retrieved Matter . | . . . Parts Self-Destructed . | . . . Prevented . | . . . Kills | -11 -10 -9 ------- Run | Yrd Mat Mat Combat Hostiles Destroyed 1 | . . 1 Melee 1 | . . 1 Classes Destroyed 1 | . . 1 Grunt 1 | . . 1 Best Kill Streak 1 | . . 1 Combat Bots Only 1 | . . 1 Max Kills in Single Turn 1 | . . 1 Gunslinging . | . . . Exploded . | . . . Melee 1 | . . 1 Uniques/NPCs Destroyed . | . . . Combat | -11 -10 -9 -------- Run | Yrd Mat Mat Hostile Shots Fired 102 | . 44 58 Missed 24 | . 13 11 Damage Taken 1257 | . 421 836 Core 533 | . 104 429 Absorbed by Shields . | . . . Core Remaining (%) 79 | 100 58 . Volleys Fired . | . . . Largest . | . . . Hottest . | . . . Shots Fired . | . . . Gun . | . . . Cannon . | . . . Launcher . | . . . Special . | . . . Kinetic . | . . . Thermal . | . . . Explosive . | . . . Electromagnetic . | . . . Robot Hit Streak . | . . . Robot Miss Streak . | . . . Penetration Max . | . . . Secondary Targets . | . . . Shots Hit Robots . | . . . Core Hits 5 | . . 5 Critical Kills . | . . . Critical Parts Destroyed . | . . . Critical Strikes . | . . . Melee Attacks . | . . . Impact . | . . . Slashing . | . . . Piercing . | . . . Sneak Attacks . | . . . Combat Hostiles . | . . . Follow-up Attacks . | . . . Damage Inflicted 69 | . 15 54 Guns . | . . . Cannons . | . . . Explosions . | . . . Melee . | . . . Ramming 69 | . 15 54 Kinetic . | . . . Thermal . | . . . Explosive . | . . . Electromagnetic . | . . . Impact . | . . . Slashing . | . . . Piercing . | . . . Highest Corruption 1 | . . 1 Average Corruption 1 | . . 1 Corruption Purged . | . . . Corruption Blocked . | . . . Overload Shots . | . . . Overflow Damage . | . . . Projectiles . | . . . Explosions . | . . . Melee . | . . . Knockbacks . | . . . Impact . | . . . Kinetic . | . . . Secondary . | . . . Self-Inflicted Damage 27 | . 6 21 Shots . | . . . Rammed 28 | . 3 25 Targets Rammed 28 | . 3 25 Kicked . | . . . Crushed . | . . . Highest Temperature 3 | . 2 3 Average Temperature 2 | . 2 3 Received Heat Transfer 453 | . 252 201 Siege Activations . | . . . Robots Corrupted . | . . . Combat Hostiles . | . . . Parts Fried . | . . . Impact Corruptions . | . . . Robots Melted . | . . . Combat Hostiles . | . . . Parts Melted . | . . . Heat Transferred . | . . . Parts Sabotaged . | . . . Parts Stolen . | . . . Parts Stripped . | . . . Power Chain Reactions . | . . . Alert | -11 -10 -9 ------- Run | Yrd Mat Mat Peak Influence 65 | . 65 33 Initial 18 | . . 18 Average 18 | . 22 20 Maximum Alert Level . | . . . Low Security (%) 100 | 100 100 100 Level 1 . | . . . Level 2 . | . . . Level 3 . | . . . Level 4 . | . . . Level 5 . | . . . High Security . | . . . Max Security . | . . . Squads Dispatched 2 | . 2 . Investigation 2 | . 2 . Extermination . | . . . Reinforcement . | . . . Assault . | . . . Garrison . | . . . Intercept . | . . . Searches Triggered . | . . . Construction Impeded . | . . . Haulers Reinforced . | . . . Active Scanning Responses . | . . . Cargo Convoy Interrupts . | . . . Stealth | -11 -10 -9 --------- Run | Yrd Mat Mat Distress Signals 1 | . 1 . Communications Jammed . | . . . Distress Signals . | . . . Times Spotted 13 | . 10 3 Peak Tracking Total 7 | . 7 3 Tactical Retreats 2 | . 2 . Traps | -11 -10 -9 ------- Run | Yrd Mat Mat Traps Triggered . | . . . Indirectly . | . . . Trap Hack Attempts . | . . . Triggered . | . . . Disarmed . | . . . Reprogrammed . | . . . Reused . | . . . Traps Extracted . | . . . Installed . | . . . Triggered . | . . . Machines | -11 -10 -9 ---------- Run | Yrd Mat Mat Machines Disabled . | . . . Max in Single Turn . | . . . Machines Repaired . | . . . Machines Dismantled . | . . . Machines Sabotaged . | . . . Overloaded Fab Kills . | . . . Hacking | -11 -10 -9 --------- Run | Yrd Mat Mat Machines Accessed 6 | . 4 2 Terminals 5 | . 4 1 Fabricators . | . . . Repair Stations . | . . . Recycling Units 1 | . . 1 Scanalyzers . | . . . Garrison Access . | . . . Total Hacks 12 | . 10 2 Successful 1 | . . 1 Failed 11 | . 10 1 Catastrophic 3 | . 2 1 Database Lockouts . | . . . Manual 8 | . 7 1 Terminals 11 | . 10 1 Fabricators . | . . . Repair Stations . | . . . Recycling Units 1 | . . 1 Scanalyzers . | . . . Garrison Access . | . . . Terminal Hacks . | . . . Fabricator Hacks . | . . . Repair Station Hacks . | . . . Recycling Unit Hacks 1 | . . 1 Retrieve Components 1 | . . 1 Scanalyzer . | . . . Garrison Access Hacks . | . . . Unauthorized Hacks . | . . . Terminals . | . . . Fabricators . | . . . Repair Stations . | . . . Recycling Units . | . . . Scanalyzers . | . . . Garrison Access . | . . . Data Cores Recovered . | . . . Used . | . . . Hacking Detections 5 | . 4 1 Full Trace Events 4 | . 4 . Feedback Events . | . . . Feedback Blocked . | . . . Robot Schematics Acquired . | . . . Robots Built . | . . . Authchips . | . . . Time . | . . . Total Robot Build Rating . | . . . Part Schematics Acquired . | . . . Parts Built . | . . . Authchips . | . . . Time . | . . . Total Part Build Rating . | . . . Parts Repaired . | . . . Time . | . . . Parts Recycled . | . . . Recycled Matter . | . . . Retrieved Matter . | . . . Retrieved Components 3 | . . 3 Parts Scanalyzed . | . . . Part Schematics Acquired . | . . . Parts Damaged . | . . . Bothacking | -11 -10 -9 ------------ Run | Yrd Mat Mat Used RIF Installer . | . . . Robots Hacked . | . . . Non-combat . | . . . Combat . | . . . Robot Hacks Applied . | . . . Relay Couplers Released . | . . . Fabnet Peak Effective % . | . . . Robots Rewired . | . . . Allies Hacked . | . . . Hacks Repelled . | . . . Allies | -11 -10 -9 -------- Run | Yrd Mat Mat Total Allies . | . . . Largest Group . | . . . Highest-Rated Group . | . . . Highest-Rated Ally . | . . . Total Orders . | . . . Ally Attacks . | . . . Total Damage . | . . . Kills . | . . . Allies Corrupted . | . . . Allies Melted . | . . . Intel | -11 -10 -9 ------- Run | Yrd Mat Mat Robot Analysis Total . | . . . Derelict Logs Recovered . | . . . Drone Launches . | . . . Drone Recoveries . | . . . Exploration | -11 -10 -9 ------------- Run | Yrd Mat Mat Turns Passed 386 | 63 160 163 Spaces Moved 288 | 69 157 62 Core 65 | 32 24 9 Treads . | . . . Legs . | . . . Wheels 170 | 37 133 . Hover 53 | . . 53 Flight . | . . . Fastest Speed 50 | 50 90 50 Average Speed 115 | 72 100 199 Slowest Speed 240 | 100 150 240 Overloaded Moves . | . . . Propulsion Burnouts . | . . . Robots Hopped . | . . . Cave-ins Triggered . | . . . Exploration Rate (%) 21 | 3 51 11 Regions Visited 2 Branch Regions . Pre-discovered Areas . | . . . Known Exits Taken . | . . . Unknown Exits Taken 2 | 1 1 . Scrap Searched . | . . . Spaces Dug . | . . . Terrain Destroyed . | . . . Melee . | . . . Projectile . | . . . AOE . | . . . Terrain Rammed . | . . . Walls Destroyed . | . . . Machines Disabled . | . . . Actions | -11 -10 -9 --------- Run | Yrd Mat Mat Total 332 | 79 159 94 Wait . | . . . Move 286 | 68 156 62 Hop . | . . . Pick Up 2 | 1 . 1 Fast Attach 10 | 7 . 3 Attach 2 | 1 . 1 Detach 3 | 2 . 1 Swap 1 | . . 1 Drop . | . . . Fire . | . . . Melee . | . . . Ram 28 | . 3 25 Kick . | . . . Crush . | . . . Escape Stasis . | . . . Rewire . | . . . Trap . | . . . Miscellaneous . | . . . Route ------- -11/Scrapyard -10/Materials (discovered 3 exits: *Mat / [*Min x2]) -9/Materials History --------- Turn | Location | Event 15 | -11/Scrapyard | Discovered new exit (range 16) 64 | -11/Scrapyard | Entered Materials 134 | -10/Materials | Discovered new exit (range 13) 206 | -10/Materials | Discovered new exit (range 13) 206 | -10/Materials | Discovered new exit (range 14) 220 | -10/Materials | Lost 3 parts (1p2n) 224 | -10/Materials | Entered another Materials area 224 | -9/Materials | Evolved 2 slots: Utility x2 307 | -9/Materials | Build established: Mutant 378 | -9/Materials | Core integrity fell below 50% 384 | -9/Materials | Core integrity fell below 20% 387 | -9/Materials | Destroyed by L-31 Rogue with Katana Last Messages --------------- 00356_ R-06 Scavenger collects Med. Armor Plating. 00356_ Critical hit (Burn: +37). 00356_ Slammed into G-34 Mercenary. 00360_ Destabilizing: Core damaged (-12). 00361_ R-06 Scavenger collects Assault Rifle. 00361_ Slammed into G-34 Mercenary. 00362_ Imp. Hover Unit destroyed. 00362_ Slammed into G-34 Mercenary. 00368_ Med. Armor Plating destroyed. 00368_ Slammed into G-34 Mercenary. 00371_ U-05 Engineer destroyed. 00371_ Slammed into G-34 Mercenary. 00372_ R-06 Scavenger collects Welding Torch. 00373_ Slammed into G-34 Mercenary. 00374_ Acquired 25 matter. 00374_ Sml. Storage Unit destroyed. 00374_ Slammed into G-34 Mercenary. 00379_ G-34 Mercenary destroyed. 00380_ Acquired 26 matter. 00381_ Slammed into L-31 Rogue. Map ----- +----------------------------------------------------+ | ?????????????????????????????????????????????????? | | ?????????????????????????????????????????????????? | | ?????????????????????????????????????????????????? | | ?????????????????????????????????????????????????? | | ?????????????????????????????????????????????????? | | ?????????????????????????????????????????????????? | | ?????????????????????????????????????????????????? | | ??????????????????????????????## ??????????????? | | ?????????????????????????????# #?????????????? | | ?????????????????????????????? ?????????????? | | ?????????????????????????????? ?????????????? | | ?????????????????????????????? ??????????????? | | ?????????????????????????????? ??????????????? | | ??????????????????????????????# #??????????????? | | ??????????????????????????????# #????????####### | | ??????????????????????????????# #????????# ! " | | ????????????#?????????????????# #????????# " | | ????????????# ????????????????# #????????# | | ???????????## ??????????????# #????????#[ | | ???????????# ############## ##############/# | | ???????????# ! != | | ???????????+ T * *%= | | ???????????# %%[ | | ???????????# ########+########+######+######## | | ???????????#####????# l% #?? # #??? | | ????????????????????#"" @ # # """ """ #??? | | ????????????????????#"" # """ # """ """ #??? | | ????????????????????#"T """ # """ # """ """ #??? | | ????????????????????#"" """ # """ # #??? | | ????????????????????#"" """ # # [[[ #??? | | ????????????????????# """ ######## [[! #??? | | ????????????????????# #??????# [[! #??? | | ????????????????????# * #????????#########??? | | ????????????????????#######?##???????????????????? | | | | | | | | | | | | | | | | | | | | | | | | | | | | | | | | | +----------------------------------------------------+ Best States ------------- Heat Dissipation 28 Energy Generation 10 Energy Capacity 125 Matter Stores 274 Matter Capacity 300 Sight Range 16 Terrain Scan Density 10 Armor Coverage 450 Evasion (%) 50 Item Schematics ----------------- None Robot Schematics ------------------ None Fabricated ------------ Nothing Alien Tech Used ----------------- None Achievements -------------- None Challenges ------------ None Game ------ Seed UtilityMultinovaUnit Manual? 0 Play Time 00:04:04 Cumulative 254.3 hours Start 2024.10.04 @ 23:06:05 End 2024.10.04 @ 23:09:13 Sessions 1 Manual Loads 0 Difficulty Rogue Special Mode None Game No. 134 Rogue 134 Adventurer 0 Explorer 0 Win Type - Total 4 Types 4/0/0/0/0/0/0/0/0 Lore% 40 Gallery% 64 Achievement% 57 Wizard Run 0 Options --------- Layout 0 ASCII 0 Keyboard 1 Movement Vi Keybinds 0 Fullscreen 2 Font 18/SmallcapsGlow Map View 76x50 Zoom Use 0% Tactical HUD 1 Map Filters NONE Filters NONE Steam 1 RUN: d775de8c-d48f-4c09-8065-e67404dfa461